fUSD/lending_fUSD_20241118
["ID","MTS","AMOUNT","RATE_DAILY","PERIOD"]
[342501483,1731936632126,-1500.0,9.999e-05,2]
[342501484,1731936632135,-500.0,9.999e-05,2]
[342501485,1731936632144,-500.0,9.999e-05,2]
[342501486,1731936632153,-404.78,9.999e-05,2]
[342501487,1731936632162,-500.0,9.999e-05,2]
[342501488,1731936632171,-500.0,9.999e-05,2]
[342501489,1731936632180,-530.96318846,9.999e-05,2]
[342501490,1731936632189,-504.61425388,9.999e-05,2]
[342501491,1731936632199,-500.0,9.999e-05,2]
[342501492,1731936632211,-216.79738763,9.999e-05,2]
[342501493,1731936632220,-500.0,9.999e-05,2]
[342501494,1731936632230,-500.0,9.999e-05,2]
[342501495,1731936632239,-500.0,9.999e-05,2]
[342501496,1731936632248,-629.48,9.999e-05,2]
[342501497,1731936632258,-500.0,9.999e-05,2]
[342501498,1731936632267,-500.0,9.999e-05,2]
[342501499,1731936632276,-500.0,9.999e-05,2]
[342501500,1731936632286,-500.0,9.999e-05,2]
[342501501,1731936632295,-200.0,9.999e-05,2]
[342501502,1731936632303,-507.93457858,9.999e-05,2]
[342501503,1731936632313,-510.28,9.999e-05,2]
[342501504,1731936632322,-500.0,9.999e-05,2]
[342501505,1731936632332,-610.65,9.999e-05,2]
[342501506,1731936632341,-3874.62,9.999e-05,2]
[342501507,1731936632350,-3874.62,9.999e-05,2]
[342501508,1731936632359,-3874.62,9.999e-05,2]
[342501509,1731936632368,-3874.62,9.999e-05,2]
[342501510,1731936632377,-3874.62,9.999e-05,2]
[342501511,1731936632386,-3874.62,9.999e-05,2]
[342501512,1731936632396,-3874.62,9.999e-05,2]
[342501513,1731936632405,-3874.62,9.999e-05,2]
[342501514,1731936632414,-3874.62,9.999e-05,2]
[342501515,1731936632423,-3874.62,9.999e-05,2]
[342501516,1731936632432,-3874.62,9.999e-05,2]
[342501517,1731936632441,-3874.62,9.999e-05,2]
[342501518,1731936632450,-3874.62,9.999e-05,2]
[342501519,1731936632461,-3874.62,9.999e-05,2]
[342501520,1731936632471,-3874.62,9.999e-05,2]
[342501521,1731936632480,-3874.62,9.999e-05,2]
[342501522,1731936632489,-3874.62,9.999e-05,2]
[342501523,1731936632498,-3874.62,9.999e-05,2]
[342501524,1731936632508,-3874.62,9.999e-05,2]
[342501525,1731936632516,-3874.62,9.999e-05,2]
[342501526,1731936632525,-3874.62,9.999e-05,2]
[342501527,1731936632535,-3874.62,9.999e-05,2]
[342501528,1731936632548,-3874.62,9.999e-05,2]
[342501529,1731936632558,-3874.74,9.999e-05,2]
[342501530,1731936632571,-500.0,9.999e-05,2]
[342501531,1731936632580,-500.0,9.999e-05,2]
[342501532,1731936632589,-872.0,0.0001,2]
[342501533,1731936632598,-4313.82277408,0.0001,2]
[342501534,1731936632621,-3398.46360694,0.0001,2]
[342501535,1731936632631,-2753.28199306,0.0001,2]
[342501540,1731936637397,-292.01360581,9.999e-05,2]
[342501541,1731936637512,-207.98639419,9.999e-05,2]
[342501542,1731936637522,-589.53,9.999e-05,2]
[342501543,1731936637532,-159.02873621,0.0001,2]
[342501544,1731936637579,-472.97126379,0.0001,2]
[342501545,1731936637590,-2700.63037927,0.0001,2]
[342501546,1731936637601,-2673.46267225,0.0001,2]
[342501547,1731936637760,-1068.76006845,0.0001,2]
[342501721,1731936639531,-5837.1379207,0.0001,2]
[342501724,1731936639543,-654.83422077,0.0001,2]
[342501726,1731936639554,-797.74000001,0.0001,2]
[342501728,1731936639570,-18751.15286213,0.0001,2]
[342501730,1731936639581,-296.03750001,0.0001,2]
[342501732,1731936639593,-16446.0,0.0001,2]
[342501739,1731936639773,-3005.23085624,0.0001,2]
[342501740,1731936639785,-1728.77262585,0.0001,2]
[342501741,1731936639797,-1925.36,0.0001,2]
[342501742,1731936639808,-359.070712,0.0001,2]
[342501961,1731936642376,-363.701,9.991e-05,2]
[342501968,1731936642438,-64.9984883,9.991e-05,2]
[342501970,1731936642448,-217.77678268,0.0001,2]
[342501972,1731936642459,-8960.0,0.0001,2]
[342501977,1731936642504,-3491.44959459,0.0001,2]
[342501979,1731936642516,-3001.86535731,0.0001,2]
[342501981,1731936642527,-10509.31490006,0.0001,2]
[342501983,1731936642537,-870.35,0.0001,2]
[342501985,1731936642550,-119023.65461309,0.0001,2]
[342501987,1731936642570,-3709.6056,0.0001,2]
[342501990,1731936642581,-5773.08162413,0.0001,2]
[342501992,1731936642594,-909.0125019,0.0001,2]
[342501993,1731936642610,-2531.23508872,0.0001,2]
[342502304,1731936645762,-1133.63256697,0.0001,2]
[342502306,1731936645774,-5842.01203276,0.0001,2]
[342502308,1731936645788,-5543.0003,0.0001,2]
[342502310,1731936645801,-22471.16323501,0.0001,2]
[342502313,1731936646035,-6683.78185615,0.0001,2]
[342502315,1731936646047,-658108.0683931,0.0001,2]
[342502317,1731936646059,-1797.23544,0.0001,2]
[342502891,1731936979650,1270.3,8.219e-05,2]
[342502931,1731937709771,1206.78,8.219e-05,2]
[342503057,1731937831604,-500.0,9e-05,2]
[342503058,1731937831614,-41.345,9e-05,2]
[342503059,1731937831777,-448.775,9e-05,2]
[342503060,1731937831796,-9.88,9e-05,2]
[342503061,1731937831806,-500.0,9e-05,2]
[342503062,1731937831815,-315.04,9e-05,2]
[342503063,1731937831824,-211.27450731,9e-05,2]
[342503064,1731937831835,-250.0,9.042e-05,2]
[342503065,1731937831844,-151.18,9.042e-05,2]
[342503066,1731937831853,-333.47,9.042e-05,2]
[342503067,1731937831864,-250.0,9.049e-05,2]
[342503068,1731937831873,-349.17,9.055e-05,2]
[342503069,1731937831882,-316.39,9.091e-05,2]
[342503070,1731937831891,-1000.0,9.388e-05,2]
[342503071,1731937831900,-500.0,9.662e-05,2]
[342503072,1731937831910,-592.67233058,9.662e-05,2]
[342503074,1731937831919,-500.0,9.662e-05,2]
[342503076,1731937831928,-33504.0,9.703e-05,2]
[342503078,1731937831938,-1810.3436877,9.8e-05,2]
[342503079,1731937831948,-150.0,9.898e-05,2]
[342503081,1731937831957,-1912.7607,9.898e-05,2]
[342503083,1731937831970,-1121.8234,9.899e-05,2]
[342503085,1731937831980,-1000.0,9.899e-05,2]
[342503087,1731937831989,-17341.8771,9.9e-05,2]
[342503089,1731937831998,-15759.7041,9.9e-05,2]
[342503091,1731937832007,-2000.0,9.9e-05,2]
[342503092,1731937832018,-1681.07363775,9.9e-05,2]
[342503093,1731937832030,-1173.981,9.973e-05,2]
[342503094,1731937832040,-656.36688409,9.991e-05,2]
[342503095,1731937832050,-500.0,9.998e-05,2]
[342503096,1731937832059,-979.76,9.998e-05,2]
[342503097,1731937832068,-2251.46,9.998e-05,2]
[342503098,1731937832077,-2333.73,9.998e-05,2]
[342503099,1731937832086,-500.0,9.998e-05,2]
[342503100,1731937832095,-230.13514197,9.998e-05,2]
[342503101,1731937832103,-1909.2,9.998e-05,2]
[342503102,1731937832113,-883.82,9.998e-05,2]
[342503103,1731937832122,-500.0,9.998e-05,2]
[342503104,1731937832131,-362.13057543,9.998e-05,2]
[342503105,1731937832140,-500.0,9.998e-05,2]
[342503106,1731937832149,-500.0,9.998e-05,2]
[342503107,1731937832159,-565.776,9.998e-05,2]
[342503108,1731937832168,-1255.0,9.998e-05,2]
[342503109,1731937832176,-554.219,9.998e-05,2]
[342503110,1731937832186,-26987.04814755,9.999e-05,2]
[342503111,1731937832197,-28712.74352499,9.999e-05,2]
[342503112,1731937832211,-3497.76153167,9.999e-05,2]
[342503113,1731937837667,-500.0,9.998e-05,2]
[342503114,1731937837677,-4580.80362961,9.999e-05,2]
[342503115,1731937837687,-26945.77,9.999e-05,2]
[342503116,1731937837696,-1396.08739896,9.999e-05,2]
[342503117,1731937837705,-500.0,9.999e-05,2]
[342503118,1731937837715,-500.0,9.999e-05,2]
[342503119,1731937837724,-500.0,9.999e-05,2]
[342503120,1731937837733,-1500.0,9.999e-05,2]
[342503121,1731937837743,-501.43435317,9.999e-05,2]
[342503122,1731937837752,-500.0,9.999e-05,2]
[342503123,1731937837761,-387.41784397,9.999e-05,2]
[342503124,1731937837771,-978.48,9.999e-05,2]
[342503125,1731937837783,-978.48,9.999e-05,2]
[342503126,1731937837792,-978.48,9.999e-05,2]
[342503127,1731937837801,-978.48,9.999e-05,2]
[342503128,1731937837811,-978.48,9.999e-05,2]
[342503129,1731937837820,-978.48,9.999e-05,2]
[342503130,1731937837829,-978.48,9.999e-05,2]
[342503131,1731937837839,-978.48,9.999e-05,2]
[342503132,1731937837848,-978.48,9.999e-05,2]
[342503133,1731937837857,-978.48,9.999e-05,2]
[342503134,1731937837866,-978.48,9.999e-05,2]
[342503135,1731937837875,-978.48,9.999e-05,2]
[342503136,1731937837885,-978.48,9.999e-05,2]
[342503137,1731937837895,-978.48,9.999e-05,2]
[342503138,1731937837903,-978.48,9.999e-05,2]
[342503139,1731937837913,-978.48,9.999e-05,2]
[342503140,1731937837923,-978.48,9.999e-05,2]
[342503141,1731937837932,-978.48,9.999e-05,2]
[342503142,1731937837942,-978.48,9.999e-05,2]
[342503143,1731937837952,-978.48,9.999e-05,2]
[342503144,1731937837962,-978.48,9.999e-05,2]
[342503145,1731937837974,-978.48,9.999e-05,2]
[342503146,1731937837983,-978.48,9.999e-05,2]
[342503147,1731937837992,-978.65360393,9.999e-05,2]
[342503148,1731937838002,-979.76,9.999e-05,2]
[342503149,1731937838011,-979.76,9.999e-05,2]
[342503150,1731937838021,-979.76,9.999e-05,2]
[342503151,1731937838033,-979.76,9.999e-05,2]
[342503152,1731937838043,-979.76,9.999e-05,2]
[342503153,1731937838052,-979.76,9.999e-05,2]
[342503154,1731937838061,-979.76,9.999e-05,2]
[342503155,1731937838070,-979.76,9.999e-05,2]
[342503156,1731937838080,-979.76,9.999e-05,2]
[342503157,1731937838089,-979.76,9.999e-05,2]
[342503158,1731937838098,-979.76,9.999e-05,2]
[342503159,1731937838108,-979.76,9.999e-05,2]
[342503160,1731937838117,-979.76,9.999e-05,2]
[342503161,1731937838126,-979.76,9.999e-05,2]
[342503162,1731937838136,-979.76,9.999e-05,2]
[342503164,1731937838145,-979.76,9.999e-05,2]
[342503166,1731937838154,-979.76,9.999e-05,2]
[342503168,1731937838165,-979.76,9.999e-05,2]
[342503169,1731937838174,-979.76,9.999e-05,2]
[342503170,1731937838184,-979.76,9.999e-05,2]
[342503171,1731937838193,-979.76,9.999e-05,2]
[342503172,1731937838202,-979.76,9.999e-05,2]
[342503173,1731937838212,-979.82,9.999e-05,2]
[342503174,1731937838221,-500.0,9.999e-05,2]
[342503175,1731937838231,-500.0,9.999e-05,2]
[342503176,1731937838241,-264.90759741,9.999e-05,2]
[342503177,1731937838251,-2251.46,9.999e-05,2]
[342503179,1731937838260,-2251.46,9.999e-05,2]
[342503181,1731937838270,-2251.46,9.999e-05,2]
[342503183,1731937838282,-2251.46,9.999e-05,2]
[342503185,1731937838292,-2251.46,9.999e-05,2]
[342503187,1731937838301,-2251.46,9.999e-05,2]
[342503189,1731937838310,-2251.46,9.999e-05,2]
[342503191,1731937838320,-2251.46,9.999e-05,2]
[342503192,1731937838329,-2251.46,9.999e-05,2]
[342503194,1731937838338,-2251.46,9.999e-05,2]
[342503196,1731937838348,-2251.46,9.999e-05,2]
[342503199,1731937838363,-2251.46,9.999e-05,2]
[342503201,1731937838372,-2251.46,9.999e-05,2]
[342503204,1731937838382,-2251.46,9.999e-05,2]
[342503206,1731937838391,-2251.46,9.999e-05,2]
[342503208,1731937838400,-2251.46,9.999e-05,2]
[342503210,1731937838409,-2251.46,9.999e-05,2]
[342503212,1731937838418,-2251.46,9.999e-05,2]
[342503213,1731937838427,-2251.46,9.999e-05,2]
[342503215,1731937838437,-2251.46,9.999e-05,2]
[342503218,1731937838446,-2251.46,9.999e-05,2]
[342503220,1731937838456,-2251.46,9.999e-05,2]
[342503223,1731937838465,-2251.67036155,9.999e-05,2]
[342503226,1731937838474,-2333.73,9.999e-05,2]
[342503228,1731937838483,-2333.73,9.999e-05,2]
[342503231,1731937838492,-2333.73,9.999e-05,2]
[342503233,1731937838501,-2333.73,9.999e-05,2]
[342503236,1731937838510,-2333.73,9.999e-05,2]
[342503239,1731937838519,-2333.73,9.999e-05,2]
[342503242,1731937838532,-2333.73,9.999e-05,2]
[342503244,1731937838541,-2333.73,9.999e-05,2]
[342503246,1731937838550,-2333.73,9.999e-05,2]
[342503247,1731937838779,-2333.73,9.999e-05,2]
[342503248,1731937838789,-2333.73,9.999e-05,2]
[342503249,1731937838798,-2333.73,9.999e-05,2]
[342503250,1731937838807,-2333.73,9.999e-05,2]
[342503251,1731937838817,-2333.73,9.999e-05,2]
[342503252,1731937838826,-2333.73,9.999e-05,2]
[342503253,1731937838835,-2333.73,9.999e-05,2]
[342503254,1731937838845,-2333.73,9.999e-05,2]
[342503255,1731937838854,-2333.73,9.999e-05,2]
[342503256,1731937838863,-2333.73,9.999e-05,2]
[342503257,1731937838873,-2333.73,9.999e-05,2]
[342503258,1731937838882,-2333.73,9.999e-05,2]
[342503259,1731937838892,-2333.73,9.999e-05,2]
[342503260,1731937838902,-2333.73634577,9.999e-05,2]
[342503261,1731937838912,-500.0,9.999e-05,2]
[342503262,1731937838922,-500.0,9.999e-05,2]
[342503263,1731937838931,-500.0,9.999e-05,2]
[342503264,1731937838941,-500.0,9.999e-05,2]
[342503265,1731937838950,-500.0,9.999e-05,2]
[342503266,1731937838961,-500.0,9.999e-05,2]
[342503267,1731937838973,-500.0,9.999e-05,2]
[342503268,1731937838982,-500.0,9.999e-05,2]
[342503269,1731937838992,-500.0,9.999e-05,2]
[342503270,1731937839002,-500.0,9.999e-05,2]
[342503271,1731937839013,-500.0,9.999e-05,2]
[342503272,1731937839022,-500.0,9.999e-05,2]
[342503273,1731937839039,-500.0,9.999e-05,2]
[342503274,1731937839048,-558.14359072,9.999e-05,2]
[342503275,1731937839057,-1909.2,9.999e-05,2]
[342503276,1731937839066,-1909.2,9.999e-05,2]
[342503277,1731937839075,-1909.2,9.999e-05,2]
[342503278,1731937839084,-1909.2,9.999e-05,2]
[342503279,1731937839093,-1909.2,9.999e-05,2]
[342503280,1731937839102,-1909.2,9.999e-05,2]
[342503281,1731937839111,-1909.2,9.999e-05,2]
[342503282,1731937839120,-1909.2,9.999e-05,2]
[342503283,1731937839130,-1909.2,9.999e-05,2]
[342503284,1731937839140,-1909.2,9.999e-05,2]
[342503285,1731937839149,-1909.2,9.999e-05,2]
[342503286,1731937839158,-1909.2,9.999e-05,2]
[342503287,1731937839168,-1909.2,9.999e-05,2]
[342503288,1731937839177,-1909.2,9.999e-05,2]
[342503289,1731937839186,-1909.2,9.999e-05,2]
[342503290,1731937839196,-1909.2,9.999e-05,2]
[342503291,1731937839205,-1909.2,9.999e-05,2]
[342503292,1731937839216,-1909.2,9.999e-05,2]
[342503293,1731937839225,-1909.2,9.999e-05,2]
[342503294,1731937839234,-1909.2,9.999e-05,2]
[342503295,1731937839243,-1909.2,9.999e-05,2]
[342503296,1731937839252,-1909.2,9.999e-05,2]
[342503297,1731937839261,-1909.32358893,9.999e-05,2]
[342503298,1731937839270,-883.82,9.999e-05,2]
[342503299,1731937839282,-883.82,9.999e-05,2]
[342503300,1731937839291,-883.82,9.999e-05,2]
[342503301,1731937839300,-883.82,9.999e-05,2]
[342503302,1731937839310,-883.82,9.999e-05,2]
[342503303,1731937839319,-883.82,9.999e-05,2]
[342503304,1731937839328,-883.82,9.999e-05,2]
[342503305,1731937839338,-883.82,9.999e-05,2]
[342503306,1731937839347,-883.82,9.999e-05,2]
[342503307,1731937839357,-883.82,9.999e-05,2]
[342503308,1731937839366,-883.82,9.999e-05,2]
[342503309,1731937839376,-883.82,9.999e-05,2]
[342503310,1731937839386,-883.82,9.999e-05,2]
[342503311,1731937839396,-883.82,9.999e-05,2]
[342503312,1731937839405,-883.82,9.999e-05,2]
[342503313,1731937839415,-883.82,9.999e-05,2]
[342503314,1731937839424,-883.82,9.999e-05,2]
[342503315,1731937839434,-883.82,9.999e-05,2]
[342503316,1731937839443,-883.82,9.999e-05,2]
[342503317,1731937839453,-883.82,9.999e-05,2]
[342503318,1731937839463,-883.82,9.999e-05,2]
[342503319,1731937839473,-883.82,9.999e-05,2]
[342503320,1731937839483,-883.95930422,9.999e-05,2]
[342503321,1731937839493,-584.96,9.999e-05,2]
[342503322,1731937839503,-500.0,9.999e-05,2]
[342503323,1731937839512,-500.0,9.999e-05,2]
[342503325,1731937839522,-500.0,9.999e-05,2]
[342503327,1731937839533,-500.0,9.999e-05,2]
[342503328,1731937839543,-500.0,9.999e-05,2]
[342503329,1731937839552,-500.0,9.999e-05,2]
[342503330,1731937839562,-500.0,9.999e-05,2]
[342503331,1731937839572,-500.0,9.999e-05,2]
[342503332,1731937839581,-500.0,9.999e-05,2]
[342503333,1731937839590,-500.0,9.999e-05,2]
[342503334,1731937839599,-500.0,9.999e-05,2]
[342503335,1731937839609,-500.0,9.999e-05,2]
[342503336,1731937839618,-500.0,9.999e-05,2]
[342503337,1731937839627,-500.0,9.999e-05,2]
[342503338,1731937839636,-500.0,9.999e-05,2]
[342503339,1731937839646,-500.0,9.999e-05,2]
[342503340,1731937839656,-500.0,9.999e-05,2]
[342503341,1731937839665,-500.0,9.999e-05,2]
[342503342,1731937839676,-500.0,9.999e-05,2]
[342503343,1731937839686,-500.0,9.999e-05,2]
[342503344,1731937839696,-500.0,9.999e-05,2]
[342503345,1731937839706,-500.0,9.999e-05,2]
[342503346,1731937839716,-500.0,9.999e-05,2]
[342503347,1731937839726,-220706.45705854,0.0001,2]
[342503348,1731937839736,-7318.43889361,0.0001,2]
[342503349,1731937839745,-1173256.63843184,0.0001,2]
[342503350,1731937839760,-310.57365093,0.0001,2]
[342503351,1731937839772,-2525.1,0.0001,2]
[342503352,1731937839786,-618.59042578,0.0001,2]
[342503353,1731937839798,-325.0840009,0.0001,2]
[342503354,1731937839810,-351.90640942,0.0001,2]
[342503355,1731937839821,-8092.65541961,0.0001,2]
[342503356,1731937839832,-499.994922,0.0001,2]
[342503357,1731937839844,-2385.47819203,0.0001,2]
[342503358,1731937839856,-655.6964493,0.0001,2]
[342503359,1731937839871,-375.31257555,0.0001,2]
[342503360,1731937839891,-500.0,9.999e-05,2]
[342503361,1731937839900,-2010.72,0.0001,2]
[342503362,1731937839912,-8752.22233078,0.0001,2]
[342503363,1731937839924,-756.82627028,0.0001,2]
[342503364,1731937839935,-397.165,0.0001,2]
[342503365,1731937839947,-1196.20049777,0.0001,2]
[342503366,1731937839958,-5128.11354999,0.0001,2]
[342503367,1731937839973,-986.07239661,0.0001,2]
[342503368,1731937839984,-525.876828,0.0001,2]
[342503369,1731937840036,-466.90701435,9.999e-05,2]
[342503370,1731937840067,-45.70974565,9.999e-05,2]
[342503371,1731937840076,-3210.09025433,0.0001,2]
[342503372,1731937840087,-3798.43220689,0.0001,2]
[342503373,1731937840099,-1940.79,0.0001,2]
[342503374,1731937840111,-397.63098387,0.0001,2]
[342503375,1731937840131,-11600.0,0.0001,2]
[342503376,1731937840142,-706.04,0.0001,2]
[342503377,1731937840153,-320.28066761,0.0001,2]
[342503378,1731937840164,-270.197316,0.0001,2]
[342503379,1731937840175,-9920.5,0.0001,2]
[342503380,1731937840187,-1517.48953745,0.0001,2]
[342503381,1731937840198,-1252.39259497,0.0001,2]
[342503382,1731937840210,-500.0,0.0001,2]
[342503387,1731937842560,-671.9989,9.899e-05,2]
[342503388,1731937842569,-2688.77176836,0.0001,2]
[342503389,1731937842583,-1605.57003,0.0001,2]
[342503390,1731937842594,-344.65690072,0.0001,2]
[342503392,1731937842605,-708.35152064,0.0001,2]
[342503393,1731937842616,-381.82056366,0.0001,2]
[342503394,1731937842627,-293.30521316,0.0001,2]
[342503395,1731937842650,-3007.59201622,0.0001,2]
[342503396,1731937842661,-6065.06685707,0.0001,2]
[342503397,1731937842672,-432.0,0.0001,2]
[342503398,1731937842684,-2833.13889606,0.0001,2]
[342503399,1731937842871,-11723.1311582,0.0001,2]
[342503400,1731937842893,-320433.68536029,0.0001,2]
[342503401,1731937842904,-500.0,0.0001,2]
[342503402,1731937842915,-270067.65961932,0.0001,2]
[342503403,1731937842927,-523.4460013,0.0001,2]
[342503404,1731937842938,-20375.25148172,0.0001,2]
[342503405,1731937842950,-931.13278959,0.0001,2]
[342503406,1731937842964,-1605.34505747,0.0001,2]
[342503407,1731937842978,-448.60442931,0.0001,2]
[342503408,1731937842989,-12175.6,0.0001,2]
[342503409,1731937843000,-10003.93457314,0.0001,2]
[342503418,1731937845619,-6380.0,0.0001,2]
[342503419,1731937845630,-8124.65370518,0.0001,2]
[342503420,1731937845641,-1801.31544,0.0001,2]
[342503421,1731937845762,-318.51114624,0.0001,2]
[342503422,1731937845773,-3053.46181636,0.0001,2]
[342503423,1731937845787,-38036.395,0.0001,2]
[342503424,1731937845798,-84089.97868,0.0001,2]
[342503425,1731937845839,-995.21147476,0.0001,2]
[342503426,1731937845861,-38444.7001934,0.0001,2]
[342503898,1731938885304,1146.44,8.219e-05,2]
[342503910,1731938974936,297.09672638,8e-05,2]
[342503922,1731939031908,-150.0,9e-05,2]
[342503923,1731939031918,-151.18,9.136e-05,2]
[342503924,1731939031927,-250.0,9.136e-05,2]
[342503925,1731939031936,-250.0,9.156e-05,2]
[342503926,1731939031946,-175.37251709,9.166e-05,2]
[342503927,1731939032023,-447.5,9.166e-05,2]
[342503928,1731939032140,-377.12748291,9.166e-05,2]
[342503929,1731939032150,-467.55,9.194e-05,2]
[342503930,1731939032160,-200.0,9.6e-05,2]
[342503931,1731939032170,-200.0,9.6e-05,2]
[342503932,1731939032179,-500.0,9.662e-05,2]
[342503933,1731939032188,-500.0,9.662e-05,2]
[342503934,1731939032198,-150.0,9.891e-05,2]
[342503935,1731939032207,-300.0,9.898e-05,2]
[342503936,1731939032216,-2162.82251809,9.899e-05,2]
[342503937,1731939032235,-2367.80604479,9.899e-05,2]
[342503951,1731939037925,-303.97448345,9.899e-05,2]
[342503952,1731939038045,-1147.48075367,9.899e-05,2]
[342503953,1731939038055,-129.56178135,9.899e-05,2]
[342503954,1731939038069,-435.55411865,9.899e-05,2]
[342503955,1731939038079,-5183.1001,9.9e-05,2]
[342503956,1731939038089,-299.99,9.9e-05,2]
[342503957,1731939038099,-939.185,9.979e-05,2]
[342503958,1731939038109,-500.0,9.998e-05,2]
[342503959,1731939038119,-500.0,9.998e-05,2]
[342503960,1731939038130,-212.04713998,9.998e-05,2]
[342503961,1731939038142,-2001.09286002,9.998e-05,2]
[342503962,1731939038152,-500.0,9.998e-05,2]
[342503963,1731939038162,-500.0,9.998e-05,2]
[342503964,1731939038172,-500.0,9.998e-05,2]
[342503965,1731939038183,-163.48256708,9.998e-05,2]
[342503966,1731939038200,-973.40743292,9.998e-05,2]
[342503967,1731939038210,-500.0,9.998e-05,2]
[342503968,1731939038219,-500.0,9.998e-05,2]
[342503969,1731939038230,-1463.12,9.998e-05,2]
[342503970,1731939038240,-500.0,9.998e-05,2]
[342503971,1731939038249,-500.0,9.998e-05,2]
[342503972,1731939038259,-500.0,9.998e-05,2]
[342503973,1731939038268,-500.0,9.998e-05,2]
[342503974,1731939038278,-3761.19,9.998e-05,2]
[342503975,1731939038287,-500.0,9.998e-05,2]
[342503976,1731939038297,-3383.74,9.998e-05,2]
[342503977,1731939038306,-3445.46,9.998e-05,2]
[342503978,1731939038317,-1225.05,9.998e-05,2]
[342503979,1731939038330,-1093.14559235,9.998e-05,2]
[342503980,1731939038340,-500.0,9.998e-05,2]
[342503981,1731939038350,-2828.41,9.998e-05,2]
[342503982,1731939038360,-1940.67,9.998e-05,2]
[342503983,1731939038371,-508.54,9.998e-05,2]
[342503984,1731939038381,-500.0,9.998e-05,2]
[342503985,1731939038391,-500.0,9.998e-05,2]
[342503986,1731939038402,-322.88529552,9.998e-05,2]
[342503987,1731939038412,-1269.92,9.998e-05,2]
[342503988,1731939038421,-500.0,9.998e-05,2]
[342503989,1731939038431,-500.0,9.998e-05,2]
[342503990,1731939038441,-500.0,9.998e-05,2]
[342503991,1731939038450,-500.0,9.998e-05,2]
[342503992,1731939038460,-500.0,9.998e-05,2]
[342503993,1731939038469,-500.0,9.998e-05,2]
[342503994,1731939038479,-462.12490724,9.998e-05,2]
[342503995,1731939038489,-1028.11,9.998e-05,2]
[342503996,1731939038498,-500.0,9.998e-05,2]
[342503997,1731939038508,-500.0,9.998e-05,2]
[342503998,1731939038517,-500.0,9.998e-05,2]
[342503999,1731939038527,-500.0,9.998e-05,2]
[342504000,1731939038536,-500.0,9.998e-05,2]
[342504001,1731939038546,-435.97,9.998e-05,2]
[342504002,1731939038556,-1220.95,9.998e-05,2]
[342504004,1731939038565,-499.69158956,9.998e-05,2]
[342504005,1731939038578,-773.04869949,9.999e-05,2]
[342504006,1731939038587,-2429.17,9.999e-05,2]
[342504007,1731939038597,-500.0,9.999e-05,2]
[342504008,1731939038608,-500.0,9.999e-05,2]
[342504009,1731939038618,-530.36147786,9.999e-05,2]
[342504010,1731939038628,-500.0,9.999e-05,2]
[342504011,1731939038638,-413.47090568,9.999e-05,2]
[342504012,1731939038649,-2213.14,9.999e-05,2]
[342504013,1731939038659,-2213.14,9.999e-05,2]
[342504014,1731939038669,-2213.14,9.999e-05,2]
[342504015,1731939038678,-2213.14,9.999e-05,2]
[342504016,1731939038687,-2213.14,9.999e-05,2]
[342504017,1731939038697,-2213.14,9.999e-05,2]
[342504018,1731939038706,-500.0,9.999e-05,2]
[342504019,1731939038717,-500.0,9.999e-05,2]
[342504020,1731939038727,-500.0,9.999e-05,2]
[342504021,1731939038736,-422.34617962,9.999e-05,2]
[342504022,1731939038746,-500.0,9.999e-05,2]
[342504023,1731939038755,-500.0,9.999e-05,2]
[342504024,1731939038765,-500.0,9.999e-05,2]
[342504025,1731939038775,-500.0,9.999e-05,2]
[342504026,1731939038784,-500.0,9.999e-05,2]
[342504027,1731939038795,-500.0,9.999e-05,2]
[342504028,1731939038804,-500.0,9.999e-05,2]
[342504029,1731939038813,-500.0,9.999e-05,2]
[342504030,1731939038825,-500.0,9.999e-05,2]
[342504031,1731939038834,-500.0,9.999e-05,2]
[342504032,1731939038843,-153.38528852,9.999e-05,2]
[342504033,1731939038853,-1136.89,9.999e-05,2]
[342504034,1731939038862,-1136.89,9.999e-05,2]
[342504035,1731939038871,-1136.89,9.999e-05,2]